[Event "XLII San Sebastian Open 2019"]
[Site "San Sebastian"]
[Date "2019.04.18"]
[Round "7.9"]
[White "Alcazar Jimenez, Jesus"]
[Black "Lopez Mijail, Nicolas"]
[Result "0-1"]
[ECO "B40"]
[WhiteElo "2189"]
[BlackElo "1980"]
[Annotator "NA"]
[PlyCount "92"]
[EventDate "2019.04.13"]
[EventType "swiss"]
[EventCountry "ESP"]
[SourceTitle "playchess.com"]
[Source "ChessBase"]
[SourceQuality "1"]
[TimeControl "5400+30"]

1. e4 {[%emt 0:03:45]} c5 {[%emt 0:00:00]} 2. Nf3 {[%emt 0:00:08]} e6 {[%emt 0:00:00]} 3. b3 {[%emt 0:00:49]} Nc6 {[%emt 0:00:02]} 4. Bb5 {[%emt 0:00:21]} Nge7 {[%emt 0:01:57]} 5. Bb2 {[%emt 0:00:30]} a6 {[%emt 0:00:36]} 6. Be2 {[%emt 0:01:26]} d6 {[%emt 0:00:14]} 7. O-O {[%emt 0:00:50]} e5 {[%emt 0:01:48]} 8. c3 {[%emt 0:00:17]} g6 {[%emt 0:09:38]} 9. d4 {[%emt 0:00:30]} Bg7 {[%emt 0:00:31]} 10. dxc5 {[%emt 0:04:25]} dxc5 {[%emt 0:00:07]} 11. Qxd8+ {[%emt 0:00:23]} Kxd8 {[%emt 0:00:07]} 12. Ba3 {[%emt 0:14:44]} b6 {[%emt 0:00:29]} 13. b4 {[%emt 0:07:11]} cxb4 {[%emt 0:01:40]} 14. cxb4 {[%emt 0:00:06]} Bg4 {[%emt 0:08:10]} 15. Nbd2 {[%emt 0:05:32]} Kc7 {[%emt 0:01:30]} 16. Bc4 {[%emt 0:19:03]} f6 {[%emt 0:05:46]} 17. Rac1 {[%emt 0:02:54]} b5 {[%emt 0:06:51]} 18. Bd5 {[%emt 0:02:54]} Rhd8 {[%emt 0:00:34]} 19. Rc5 {[%emt 0:01:00]} Kb6 {[%emt 0:01:47]} 20. Nb3 {[%emt 0:03:21]} Rac8 {[%emt 0:01:26]} 21. h3 {[%emt 0:06:38]} Bxf3 {[%emt 0:07:00]} 22. gxf3 {[%emt 0:00:33]} Bh6 {[%emt 0:00:31]} 23. Be6 {[%emt 0:03:00]} Rc7 {[%emt 0:00:55]} 24. Bc1 {[%emt 0:03:48]} Bxc1 {[%emt 0:10:04]} 25. Rfxc1 {[%emt 0:00:06]} Rd6 {[%emt 0:00:19]} 26. Bd5 {[%emt 0:00:59]} Rcd7 {[%emt 0:00:09]} 27. a3 {[%emt 0:10:42]} Nxd5 {[%emt 0:04:42]} 28. exd5 {[%emt 0:00:04]} Ne7 {[%emt 0:01:31]} 29. f4 {[%emt 0:03:07]} exf4 {[%emt 0:01:36]} 30. Re1 {[%emt 0:01:22]} Nxd5 {[%emt 0:02:56]} 31. Re8 {[%emt 0:00:45]} Nc7 {[%emt 0:02:17]} 32. Rb8+ {[%emt 0:01:15]} Ka7 {[%emt 0:00:05]} 33. Rc8 {[%emt 0:00:12]} Ne6 {[%emt 0:02:32]} 34. Rc2 {[%emt 0:02:48]} Nd4 {[%emt 0:21:02]} 35. Nxd4 {[%emt 0:00:05]} Rxd4 {[%emt 0:00:03]} 36. R8c7+ {[%emt 0:00:07]} Rxc7 {[%emt 0:02:01]} 37. Rxc7+ {[%emt 0:00:05]} Kb6 {[%emt 0:00:04]} 38. Rxh7 {[%emt 0:00:57]} a5 {[%emt 0:00:01]} 39. Rh6 {[%emt 0:02:03]} axb4 {[%emt 0:00:41]} 40. axb4 {[%emt 0:00:04]} Rxb4 {[%emt 0:00:28]} 41. Rxg6 {[%emt 0:00:05]} Rd4 {[%emt 0:00:20]} 42. Rxf6+ {[%emt 0:00:40]} Kc5 {[%emt 0:00:04]} 43. h4 {[%emt 0:01:13]} b4 {[%emt 0:00:03]} 44. Rf5+ {[%emt 0:00:37]} Kc4 {[%emt 0:00:29]} 45. Rf8 {[%emt 0:00:18]} b3 {[%emt 0:00:16]} 46. h5 {[%emt 0:00:41]} b2 {[%emt 0:00:09]} 0-1

[Event "XLII San Sebastian Open 2019"]
[Site "San Sebastian"]
[Date "2019.04.18"]
[Round "7.10"]
[White "Alfaro Garcia del Cerro, Juan L"]
[Black "Vinal Gutierrez, Pedro"]
[Result "1-0"]
[ECO "D31"]
[WhiteElo "2151"]
[BlackElo "2028"]
[Annotator "NA"]
[PlyCount "61"]
[EventDate "2019.04.13"]
[EventType "swiss"]
[EventCountry "ESP"]
[SourceTitle "playchess.com"]
[Source "ChessBase"]
[SourceQuality "1"]
[TimeControl "5400+30"]

1. d4 {[%emt 0:00:00]} d5 {[%emt 0:00:00]} 2. c4 {[%emt 0:00:00]} e6 {[%emt 0:00:00]} 3. Nf3 {[%emt 0:00:00]} c6 {[%emt 0:00:00]} 4. Nc3 {[%emt 0:00:19]} dxc4 {[%emt 0:00:06]} 5. a4 {[%emt 0:00:05]} Bb4 {[%emt 0:00:13]} 6. e4 {[%emt 0:00:04]} b5 {[%emt 0:00:20]} 7. Be2 {[%emt 0:00:06]} Bb7 {[%emt 0:01:46]} 8. O-O {[%emt 0:00:08]} a6 {[%emt 0:00:53]} 9. e5 {[%emt 0:00:06]} Bxc3 {[%emt 0:00:43]} 10. bxc3 {[%emt 0:00:03]} Ne7 {[%emt 0:00:23]} 11. Ng5 {[%emt 0:00:15]} Nd7 {[%emt 0:01:58]} 12. Bh5 {[%emt 0:00:51]} Ng6 {[%emt 0:01:16]} 13. Qf3 {[%emt 0:04:27]} O-O {[%emt 0:03:14]} 14. Qh3 {[%emt 0:01:28]} h6 {[%emt 0:04:26]} 15. Bxg6 {[%emt 0:01:35]} fxg6 {[%emt 0:00:15]} 16. Qxe6+ {[%emt 0:01:05]} Kh8 {[%emt 0:00:10]} 17. Nf7+ {[%emt 0:00:15]} Rxf7 {[%emt 0:00:18]} 18. Qxf7 {[%emt 0:00:05]} Qe8 {[%emt 0:01:08]} 19. Qxe8+ {[%emt 0:01:15]} Rxe8 {[%emt 0:00:07]} 20. f4 {[%emt 0:00:56]} Nb6 {[%emt 0:00:39]} 21. axb5 {[%emt 0:03:02]} cxb5 {[%emt 0:00:18]} 22. f5 {[%emt 0:00:32]} gxf5 {[%emt 0:00:25]} 23. Rxf5 {[%emt 0:00:15]} Kg8 {[%emt 0:00:18]} 24. Ba3 {[%emt 0:07:53]} Nd5 {[%emt 0:00:57]} 25. Raf1 {[%emt 0:05:02]} Nxc3 {[%emt 0:01:02]} 26. Rf8+ {[%emt 0:00:17]} Rxf8 {[%emt 0:00:08]} 27. Rxf8+ {[%emt 0:00:03]} Kh7 {[%emt 0:00:07]} 28. e6 {[%emt 0:00:01]} Ne2+ {[%emt 0:00:42]} 29. Kf2 {[%emt 0:00:24]} Nxd4 {[%emt 0:00:08]} 30. e7 {[%emt 0:00:07]} Bc6 {[%emt 0:00:14]} 31. Rc8 {[%emt 0:00:51]} 1-0

[Event "XLII San Sebastian Open 2019"]
[Site "San Sebastian"]
[Date "2019.04.18"]
[Round "7.11"]
[White "Knudsen, Martin"]
[Black "Cabanas Jimenez, Manuel"]
[Result "1/2-1/2"]
[ECO "D85"]
[WhiteElo "2016"]
[BlackElo "2119"]
[Annotator "NA"]
[PlyCount "30"]
[EventDate "2019.04.13"]
[EventType "swiss"]
[EventCountry "ESP"]
[SourceTitle "playchess.com"]
[Source "ChessBase"]
[SourceQuality "1"]
[TimeControl "5400+30"]

1. d4 {[%emt 0:00:00]} Nf6 {[%emt 0:04:52]} 2. c4 {[%emt 0:00:00]} g6 {[%emt 0:00:09]} 3. Nc3 {[%emt 0:00:15]} d5 {[%emt 0:00:05]} 4. cxd5 {[%emt 0:00:43]} Nxd5 {[%emt 0:00:06]} 5. Bd2 {[%emt 0:00:09]} Nb6 {[%emt 0:00:15]} 6. e3 {[%emt 0:00:52]} Bg7 {[%emt 0:00:05]} 7. Nf3 {[%emt 0:00:47]} O-O {[%emt 0:00:07]} 8. Be2 {[%emt 0:01:11]} Be6 {[%emt 0:00:11]} 9. b3 {[%emt 0:01:39]} c6 {[%emt 0:04:24]} 10. O-O {[%emt 0:00:50]} Bg4 {[%emt 0:02:58]} 11. Rc1 {[%emt 0:01:25]} N8d7 {[%emt 0:00:43]} 12. h3 {[%emt 0:04:16]} Bxf3 {[%emt 0:00:22]} 13. Bxf3 {[%emt 0:00:05]} Nf6 {[%emt 0:04:05]} 14. Qe2 {[%emt 0:03:57]} Qd7 {[%emt 0:10:16]} 15. Rfd1 {[%emt 0:02:18]} Rfd8 {[%emt 0:02:53]} 1/2-1/2

[Event "XLII San Sebastian Open 2019"]
[Site "San Sebastian"]
[Date "2019.04.18"]
[Round "7.12"]
[White "Garcia Salamero, Gabriel"]
[Black "Sanchez Merino, Christian"]
[Result "1-0"]
[ECO "C48"]
[WhiteElo "2177"]
[BlackElo "1832"]
[Annotator "NA"]
[PlyCount "113"]
[EventDate "2019.04.13"]
[EventType "swiss"]
[EventCountry "ESP"]
[SourceTitle "playchess.com"]
[Source "ChessBase"]
[SourceQuality "1"]
[TimeControl "5400+30"]

1. e4 {[%emt 0:04:55]} e5 {[%emt 0:00:00]} 2. Nf3 {[%emt 0:00:51]} Nc6 {[%emt 0:00:00]} 3. Nc3 {[%emt 0:00:05]} Nf6 {[%emt 0:00:05]} 4. Bb5 {[%emt 0:00:02]} d6 {[%emt 0:02:20]} 5. d4 {[%emt 0:00:17]} exd4 {[%emt 0:01:19]} 6. Nxd4 {[%emt 0:00:25]} Bd7 {[%emt 0:00:57]} 7. O-O {[%emt 0:00:11]} Nxd4 {[%emt 0:01:24]} 8. Qxd4 {[%emt 0:00:03]} Bxb5 {[%emt 0:01:40]} 9. Nxb5 {[%emt 0:00:01]} a6 {[%emt 0:06:13]} 10. Nc3 {[%emt 0:00:06]} Be7 {[%emt 0:01:14]} 11. Bd2 {[%emt 0:03:35]} O-O {[%emt 0:00:43]} 12. Rad1 {[%emt 0:05:48]} Nd7 {[%emt 0:09:46]} 13. Nd5 {[%emt 0:00:36]} Bf6 {[%emt 0:01:57]} 14. Qc4 {[%emt 0:03:49]} Rc8 {[%emt 0:05:40]} 15. f3 {[%emt 0:01:56]} Bxb2 {[%emt 0:04:05]} 16. Qb4 {[%emt 0:00:02]} c6 {[%emt 0:05:55]} 17. Ne3 {[%emt 0:10:12]} Qb6 {[%emt 0:06:48]} 18. Qxb6 {[%emt 0:02:34]} Nxb6 {[%emt 0:00:05]} 19. Nf5 {[%emt 0:00:06]} Bf6 {[%emt 0:08:59]} 20. Nxd6 {[%emt 0:01:00]} Rcd8 {[%emt 0:03:39]} 21. Be3 {[%emt 0:08:29]} Rxd6 {[%emt 0:09:39]} 22. Bxb6 {[%emt 0:22:54]} Rxd1 {[%emt 0:10:28]} 23. Rxd1 {[%emt 0:00:01]} Rb8 {[%emt 0:00:51]} 24. Kf1 {[%emt 0:01:41]} Kf8 {[%emt 0:00:38]} 25. Rb1 {[%emt 0:00:00]} Re8 {[%emt 0:01:34]} 26. Rd1 {[%emt 0:05:48]} Rb8 {[%emt 0:01:01]} 27. Ke2 {[%emt 0:01:19]} g6 {[%emt 0:06:20]} 28. f4 {[%emt 0:01:16]} Re8 {[%emt 0:04:39]} 29. Kf3 {[%emt 0:01:19]} Bc3 {[%emt 0:03:36]} 30. Rd7 {[%emt 0:01:10]} Bb4 {[%emt 0:01:43]} 31. Rxb7 {[%emt 0:01:05]} Re7 {[%emt 0:00:14]} 32. Bc7 {[%emt 0:00:46]} Ke8 {[%emt 0:01:56]} 33. Rb8+ {[%emt 0:06:22]} Kd7 {[%emt 0:00:04]} 34. Be5 {[%emt 0:00:59]} a5 {[%emt 0:00:55]} 35. c3 {[%emt 0:01:25]} Rxe5 {[%emt 0:00:31]} 36. fxe5 {[%emt 0:02:37]} Bxc3 {[%emt 0:00:04]} 37. Rb7+ {[%emt 0:00:24]} Ke6 {[%emt 0:00:07]} 38. Rc7 {[%emt 0:00:15]} Kxe5 {[%emt 0:01:18]} 39. Rxc6 {[%emt 0:00:05]} Bb4 {[%emt 0:00:29]} 40. Rc7 {[%emt 0:00:22]} Kf6 {[%emt 0:00:11]} 41. Ra7 {[%emt 0:00:12]} h6 {[%emt 0:00:31]} 42. g4 {[%emt 0:00:50]} Ke6 {[%emt 0:00:50]} 43. h3 {[%emt 0:01:39]} Kf6 {[%emt 0:00:05]} 44. Rb7 {[%emt 0:01:14]} Ke6 {[%emt 0:00:49]} 45. Ke3 {[%emt 0:00:01]} Kf6 {[%emt 0:00:35]} 46. h4 {[%emt 0:00:44]} Be1 {[%emt 0:00:17]} 47. h5 {[%emt 0:00:30]} gxh5 {[%emt 0:00:30]} 48. gxh5 {[%emt 0:00:10]} Bc3 {[%emt 0:00:37]} 49. Rb5 {[%emt 0:00:17]} Be1 {[%emt 0:00:23]} 50. Rf5+ {[%emt 0:00:36]} Kg7 {[%emt 0:00:10]} 51. Kd4 {[%emt 0:00:11]} Bd2 {[%emt 0:00:44]} 52. Kd5 {[%emt 0:00:28]} Bc3 {[%emt 0:00:46]} 53. Kd6 {[%emt 0:00:09]} f6 {[%emt 0:00:34]} 54. Ke7 {[%emt 0:00:18]} a4 {[%emt 0:00:31]} 55. Rf3 {[%emt 0:01:21]} Bb2 {[%emt 0:00:30]} 56. Rg3+ {[%emt 0:00:10]} Kh7 {[%emt 0:00:13]} 57. Kf7 {[%emt 0:00:02]} 1-0

[Event "XLII San Sebastian Open 2019"]
[Site "San Sebastian"]
[Date "2019.04.19"]
[Round "8.4"]
[White "Safranska, Anda"]
[Black "Cifuentes Parada, Roberto"]
[Result "1/2-1/2"]
[ECO "B30"]
[WhiteElo "2167"]
[BlackElo "2445"]
[Annotator "RC"]
[PlyCount "139"]
[EventDate "2019.04.13"]
[EventType "swiss"]
[EventCountry "ESP"]
[SourceTitle "playchess.com"]
[Source "ChessBase"]
[SourceQuality "1"]
[TimeControl "5400+30"]

1. e4 {[%emt 0:00:00]} c5 {[%emt 0:31:07]} 2. Nf3 {[%emt 0:00:37]} Nc6 {[%emt 0:00:24]} 3. g3 {[%emt 0:00:17]} d5 {[%emt 0:00:41]} 4. exd5 {[%emt 0:00:10]} Qxd5 {[%emt 0:00:06]} 5. Bg2 {[%emt 0:00:15]} Qe6+ {[%emt 0:00:12]} 6. Kf1 {[%emt 0:00:19]} Nf6 {[%emt 0:00:37]} 7. Na3 {[%emt 0:00:31]} g6 {[%emt 0:00:23]} 8. d3 {[%emt 0:00:25]} Bg7 {[%emt 0:00:10]} 9. h3 {[%emt 0:04:55]} O-O {[%emt 0:00:22]} 10. Kg1 {[%emt 0:00:26]} Qd7 {[%emt 0:01:44]} 11. Kh2 {[%emt 0:00:20]} Nd5 {[%emt 0:00:39]} 12. Re1 {[%emt 0:01:56]} b6 {[%emt 0:00:30]} 13. Nc4 {[%emt 0:00:22]} Bb7 {[%emt 0:00:23]} 14. Nce5 {[%emt 0:01:29]} Nxe5 {[%emt 0:01:19]} 15. Nxe5 {[%emt 0:00:06]} Qc7 {[%emt 0:01:04]} 16. Qe2 {[%emt 0:00:47]} Rad8 {[%emt 0:01:11]} 17. a3 {[%emt 0:01:35]} e6 {[%emt 0:02:15]} 18. Bd2 {[%emt 0:02:12]} Ne7 {[%emt 0:03:14]} 19. Bxb7 {[%emt 0:00:59]} Qxb7 {[%emt 0:00:07]} 20. Bc3 {[%emt 0:25:08]} Nf5 {[%emt 0:03:01]} 21. Qe4 {[%emt 0:04:10]} Qxe4 {[%emt 0:00:28]} 22. dxe4 {[%emt 0:06:24]} Bxe5 {[%emt 0:06:37]} 23. Bxe5 {[%emt 0:00:09]} Nd4 {[%emt 0:00:04]} 24. Bxd4 {[%emt 0:00:52]} Rxd4 {[%emt 0:00:06]} 25. Rad1 {[%emt 0:03:29]} Rfd8 {[%emt 0:00:07]} 26. Rxd4 {[%emt 0:00:10]} Rxd4 {[%emt 0:00:03]} 27. Kg2 {[%emt 0:00:25]} c4 {[%emt 0:01:24]} 28. Re3 {[%emt 0:02:16]} Kg7 {[%emt 0:01:09]} 29. e5 {[%emt 0:01:02]} g5 {[%emt 0:00:40]} 30. Kf3 {[%emt 0:00:23]} b5 {[%emt 0:00:11]} 31. Ke2 {[%emt 0:08:30]} Kg6 {[%emt 0:00:29]} 32. g4 {[%emt 0:00:06]} h5 {[%emt 0:04:41]} 33. f3 {[%emt 0:00:08]} h4 {[%emt 0:00:18]} 34. b3 {[%emt 0:04:16]} cxb3 {[%emt 0:00:56]} 35. cxb3 {[%emt 0:00:08]} Rd5 {[%emt 0:00:13]} 36. Re4 {[%emt 0:00:16]} a5 {[%emt 0:00:18]} 37. Re3 {[%emt 0:02:21]} Kg7 {[%emt 0:00:27]} 38. Re4 {[%emt 0:00:28]} Kf8 {[%emt 0:00:07]} 39. b4 {[%emt 0:04:54]} axb4 {[%emt 0:00:55]} 40. axb4 {[%emt 0:00:04]} Ke7 {[%emt 0:00:26]} 41. Re3 {[%emt 0:04:15]} Rd7 {[%emt 0:02:27]} 42. Rd3 {[%emt 0:02:40]} Ra7 {[%emt 0:00:08]} 43. Ke3 {[%emt 0:05:58]} Ra4 {[%emt 0:01:17]} 44. Rb3 {[%emt 0:01:41]} Ra1 {[%emt 0:00:38]} 45. Kd4 {[%emt 0:02:37]} Rh1 {[%emt 0:00:57]} 46. f4 {[%emt 0:03:39]} gxf4 {[%emt 0:02:52]} 47. Rf3 {[%emt 0:01:40]} Rd1+ {[%emt 0:00:43]} 48. Ke4 {[%emt 0:00:17]} Rb1 {[%emt 0:00:12]} 49. Kxf4 {[%emt 0:00:38]} Rxb4+ {[%emt 0:01:23]} 50. Kg5 {[%emt 0:00:10]} Re4 {[%emt 0:00:01]} 51. Kxh4 {[%emt 0:00:10]} Rxe5 {[%emt 0:00:04]} 52. g5 {[%emt 0:01:47]} b4 {[%emt 0:00:29]} 53. Rb3 {[%emt 0:04:42]} Re4+ {[%emt 0:03:23]} 54. Kh5 {[%emt 0:00:10]} Kf8 {[%emt 0:00:15]} 55. h4 {[%emt 0:01:36]} Kg7 {[%emt 0:00:34]} 56. Rb1 {[%emt 0:00:04]} Rd4 {[%emt 0:01:07]} 57. Rb2 {[%emt 0:00:09]} Rf4 {[%emt 0:01:26]} 58. Rb1 {[%emt 0:00:06]} f6 {[%emt 0:01:47]} 59. Rb2 {[%emt 0:00:53]} Rc4 {[%emt 0:02:41]} 60. Rb1 {[%emt 0:00:18]} fxg5 {[%emt 0:05:12]} 61. hxg5 {[%emt 0:00:05]} e5 {[%emt 0:00:53]} 62. Rb2 {[%emt 0:00:05]} Rf4 {[%emt 0:00:56]} 63. Re2 {[%emt 0:03:32]} e4 {[%emt 0:00:44]} 64. Re3 {[%emt 0:00:08]} Rf7 {[%emt 0:03:19]} 65. Rxe4 {[%emt 0:00:06]} Rb7 {[%emt 0:00:02]} 66. Re2 {[%emt 0:00:23]} b3 {[%emt 0:00:06]} 67. Rb2 {[%emt 0:00:03]} Rb4 {[%emt 0:00:12]} 68. g6 {[%emt 0:00:15]} Kf6 {[%emt 0:01:06]} 69. g7 {[%emt 0:00:11]} Kxg7 {[%emt 0:00:20]} 70. Kg5 {[%emt 0:00:03]} 1/2-1/2

[Event "XLII San Sebastian Open 2019"]
[Site "San Sebastian"]
[Date "2019.04.19"]
[Round "8.6"]
[White "Lopez Mijail, Nicolas"]
[Black "Perez Gonzalez, Jose Manuel"]
[Result "0-1"]
[ECO "B80"]
[WhiteElo "1980"]
[BlackElo "2231"]
[Annotator "ChessBase"]
[PlyCount "114"]
[EventDate "2019.04.13"]
[EventType "swiss"]
[EventCountry "ESP"]
[SourceTitle "playchess.com"]
[Source "ChessBase"]
[SourceQuality "1"]
[TimeControl "5400+30"]

1. e4 {[%emt 0:00:00]} c5 {[%emt 0:00:00]} 2. Nf3 {[%emt 0:00:00]} d6 {[%emt 0:00:00]} 3. d4 {[%emt 0:00:00]} cxd4 {[%emt 0:00:00]} 4. Nxd4 {[%emt 0:00:00]} Nf6 {[%emt 0:00:00]} 5. Nc3 {[%emt 0:00:00]} e6 {[%emt 0:00:00]} 6. Be3 {[%emt 0:00:11]} Nc6 {[%emt 0:00:31]} 7. Be2 {[%emt 0:00:53]} Be7 {[%emt 0:00:30]} 8. O-O {[%emt 0:00:20]} a6 {[%emt 0:00:22]} 9. f4 {[%emt 0:00:22]} O-O {[%emt 0:01:41]} 10. Bf3 {[%emt 0:04:37]} Qc7 {[%emt 0:00:40]} 11. Nxc6 {[%emt 0:00:19]} bxc6 {[%emt 0:00:19]} 12. Na4 {[%emt 0:00:06]} Rb8 {[%emt 0:01:20]} 13. c4 {[%emt 0:00:07]} c5 {[%emt 0:04:08]} 14. Qe2 {[%emt 0:02:44]} Bd7 {[%emt 0:07:22]} 15. Nc3 {[%emt 0:00:17]} Bc6 {[%emt 0:00:19]} 16. b3 {[%emt 0:02:38]} Rbd8 {[%emt 0:30:57]} 17. Rad1 {[%emt 0:02:42]} Nd7 {[%emt 0:08:25]} 18. Bf2 {[%emt 0:03:24]} Rfe8 {[%emt 0:03:13]} 19. Rd3 {[%emt 0:03:02]} Bb7 {[%emt 0:06:26]} 20. Rfd1 {[%emt 0:04:01]} Nb8 {[%emt 0:00:22]} 21. Be3 {[%emt 0:28:13]} Nc6 {[%emt 0:01:15]} 22. Qf2 {[%emt 0:02:25]} Qa5 {[%emt 0:07:17]} 23. e5 {[%emt 0:09:42]} dxe5 {[%emt 0:03:37]} 24. Rxd8 {[%emt 0:00:08]} Rxd8 {[%emt 0:02:43]} 25. Rxd8+ {[%emt 0:01:44]} Nxd8 {[%emt 0:00:47]} 26. Na4 {[%emt 0:08:40]} Bxf3 {[%emt 0:00:49]} 27. gxf3 {[%emt 0:00:07]} exf4 {[%emt 0:01:17]} 28. Bxc5 {[%emt 0:06:53]} Bxc5 {[%emt 0:03:13]} 29. Qxc5 {[%emt 0:01:06]} Qxc5+ {[%emt 0:00:29]} 30. Nxc5 {[%emt 0:00:07]} a5 {[%emt 0:00:04]} 31. Kf2 {[%emt 0:01:26]} Kf8 {[%emt 0:01:14]} 32. a3 {[%emt 0:00:08]} Ke7 {[%emt 0:00:41]} 33. b4 {[%emt 0:00:08]} axb4 {[%emt 0:00:06]} 34. axb4 {[%emt 0:00:05]} Kd6 {[%emt 0:01:03]} 35. Nd3 {[%emt 0:05:32]} g5 {[%emt 0:01:20]} 36. h3 {[%emt 0:02:05]} f6 {[%emt 0:02:30]} 37. Ke2 {[%emt 0:02:58]} Nc6 {[%emt 0:02:09]} 38. Kd2 {[%emt 0:00:33]} Nd4 {[%emt 0:01:48]} 39. Kc3 {[%emt 0:00:15]} Nxf3 {[%emt 0:00:59]} 40. b5 {[%emt 0:00:12]} Ne5 {[%emt 0:00:41]} 41. c5+ {[%emt 0:00:08]} Kd5 {[%emt 0:03:46]} 42. c6 {[%emt 0:03:16]} Nxc6 {[%emt 0:02:47]} 43. bxc6 {[%emt 0:00:07]} Kxc6 {[%emt 0:00:03]} 44. Kd4 {[%emt 0:00:21]} Kd6 {[%emt 0:00:06]} 45. Ke4 {[%emt 0:00:58]} h6 {[%emt 0:01:07]} 46. Kd4 {[%emt 0:00:28]} h5 {[%emt 0:01:07]} 47. Ke4 {[%emt 0:00:06]} f5+ {[%emt 0:01:33]} 48. Kf3 {[%emt 0:01:37]} e5 {[%emt 0:00:15]} 49. Nf2 {[%emt 0:00:19]} Kd5 {[%emt 0:00:42]} 50. Ke2 {[%emt 0:00:20]} e4 {[%emt 0:00:35]} 51. Nd1 {[%emt 0:00:33]} Kd4 {[%emt 0:00:52]} 52. Kd2 {[%emt 0:00:46]} h4 {[%emt 0:00:35]} 53. Nc3 {[%emt 0:00:25]} e3+ {[%emt 0:00:40]} 54. Kc2 {[%emt 0:00:09]} f3 {[%emt 0:00:11]} 55. Nb5+ {[%emt 0:00:05]} Kc5 {[%emt 0:00:56]} 56. Nc7 {[%emt 0:00:30]} f2 {[%emt 0:00:14]} 57. Ne6+ {[%emt 0:00:06]} Kc4 {[%emt 0:00:08]} 0-1

[Event "XLII San Sebastian Open 2019"]
[Site "San Sebastian"]
[Date "2019.04.19"]
[Round "8.8"]
[White "Prieto Aranguren, Alain"]
[Black "Pastor Pons, Pedro Maria"]
[Result "1-0"]
[ECO "D15"]
[WhiteElo "2257"]
[BlackElo "2027"]
[Annotator "NA"]
[PlyCount "67"]
[EventDate "2019.04.13"]
[EventType "swiss"]
[EventCountry "ESP"]
[SourceTitle "playchess.com"]
[Source "ChessBase"]
[SourceQuality "1"]
[TimeControl "5400+30"]

1. d4 {[%emt 0:00:00]} d5 {[%emt 0:03:02]} 2. c4 {[%emt 0:00:00]} c6 {[%emt 0:00:17]} 3. Nf3 {[%emt 0:00:00]} Nf6 {[%emt 0:00:14]} 4. Nc3 {[%emt 0:00:00]} a6 {[%emt 0:04:34]} 5. e3 {[%emt 0:00:15]} g6 {[%emt 0:03:07]} 6. Ne5 {[%emt 0:02:41]} Bg7 {[%emt 0:00:48]} 7. Be2 {[%emt 0:02:04]} O-O {[%emt 0:00:39]} 8. O-O {[%emt 0:00:20]} e6 {[%emt 0:07:17]} 9. b3 {[%emt 0:07:50]} Nfd7 {[%emt 0:03:10]} 10. Nf3 {[%emt 0:00:58]} Nf6 {[%emt 0:06:36]} 11. Qc2 {[%emt 0:01:33]} b6 {[%emt 0:00:25]} 12. e4 {[%emt 0:00:45]} dxe4 {[%emt 0:00:31]} 13. Nxe4 {[%emt 0:00:18]} Nxe4 {[%emt 0:00:15]} 14. Qxe4 {[%emt 0:00:05]} Bb7 {[%emt 0:00:30]} 15. Bg5 {[%emt 0:03:26]} Bf6 {[%emt 0:01:20]} 16. Bxf6 {[%emt 0:06:42]} Qxf6 {[%emt 0:00:02]} 17. Ne5 {[%emt 0:00:56]} Ra7 {[%emt 0:02:40]} 18. Qe3 {[%emt 0:07:08]} Ba8 {[%emt 0:04:57]} 19. Bf3 {[%emt 0:00:22]} Rc8 {[%emt 0:05:08]} 20. Ng4 {[%emt 0:04:54]} Qg7 {[%emt 0:01:56]} 21. Rad1 {[%emt 0:05:10]} Nd7 {[%emt 0:00:58]} 22. Qf4 {[%emt 0:04:17]} g5 {[%emt 0:08:31]} 23. Qd6 {[%emt 0:01:36]} h5 {[%emt 0:10:28]} 24. Ne5 {[%emt 0:01:04]} Nxe5 {[%emt 0:00:33]} 25. dxe5 {[%emt 0:00:43]} g4 {[%emt 0:04:48]} 26. Be4 {[%emt 0:01:36]} Qg5 {[%emt 0:01:34]} 27. f4 {[%emt 0:06:39]} Qe7 {[%emt 0:00:35]} 28. Qd2 {[%emt 0:01:01]} c5 {[%emt 0:01:10]} 29. Bb1 {[%emt 0:00:57]} f5 {[%emt 0:09:35]} 30. exf6 {[%emt 0:00:05]} Qxf6 {[%emt 0:00:02]} 31. Rfe1 {[%emt 0:00:19]} Rf8 {[%emt 0:00:28]} 32. Re5 {[%emt 0:04:40]} Rg7 {[%emt 0:00:45]} 33. Rxh5 {[%emt 0:03:01]} Qxf4 {[%emt 0:05:11]} 34. Bh7+ 1-0

[Event "XLII San Sebastian Open 2019"]
[Site "San Sebastian"]
[Date "2019.04.19"]
[Round "8.9"]
[White "Randazzo, Adrian"]
[Black "Torres Ganuza, Francisco Javier"]
[Result "1/2-1/2"]
[ECO "A05"]
[WhiteElo "2248"]
[BlackElo "2018"]
[Annotator "NA"]
[PlyCount "61"]
[EventDate "2019.04.13"]
[EventType "swiss"]
[EventCountry "ESP"]
[SourceTitle "playchess.com"]
[Source "ChessBase"]
[SourceQuality "1"]
[TimeControl "5400+30"]

1. Nf3 {[%emt 0:00:00]} Nf6 {[%emt 0:00:00]} 2. c4 {[%emt 0:00:00]} g6 {[%emt 0:00:00]} 3. d4 {[%emt 0:00:00]} Bg7 {[%emt 0:00:00]} 4. e3 {[%emt 0:00:00]} O-O {[%emt 0:00:37]} 5. Be2 {[%emt 0:00:03]} c5 {[%emt 0:01:53]} 6. d5 {[%emt 0:00:36]} d6 {[%emt 0:00:06]} 7. O-O {[%emt 0:00:47]} e6 {[%emt 0:01:52]} 8. Nc3 {[%emt 0:00:19]} exd5 {[%emt 0:00:12]} 9. cxd5 {[%emt 0:00:08]} Re8 {[%emt 0:00:10]} 10. Nd2 {[%emt 0:00:18]} a6 {[%emt 0:00:57]} 11. a4 {[%emt 0:00:05]} b6 {[%emt 0:00:04]} 12. e4 {[%emt 0:00:28]} Nbd7 {[%emt 0:01:45]} 13. f3 {[%emt 0:01:17]} Qc7 {[%emt 0:05:19]} 14. Nc4 {[%emt 0:00:18]} Ne5 {[%emt 0:02:04]} 15. Nxe5 {[%emt 0:01:02]} Rxe5 {[%emt 0:00:13]} 16. Kh1 {[%emt 0:16:43]} Re8 {[%emt 0:07:54]} 17. Qc2 {[%emt 0:00:30]} Bd7 {[%emt 0:03:59]} 18. f4 {[%emt 0:02:54]} c4 {[%emt 0:08:46]} 19. e5 {[%emt 0:03:59]} dxe5 {[%emt 0:00:14]} 20. fxe5 {[%emt 0:00:10]} Ng4 {[%emt 0:00:51]} 21. d6 {[%emt 0:32:58]} Qc5 {[%emt 0:06:53]} 22. Bxg4 {[%emt 0:01:19]} Bxg4 {[%emt 0:00:06]} 23. Bf4 {[%emt 0:00:16]} Bf5 {[%emt 0:06:20]} 24. Qd2 {[%emt 0:00:56]} Bxe5 {[%emt 0:10:06]} 25. Rae1 {[%emt 0:06:57]} Bxf4 {[%emt 0:04:55]} 26. Rxe8+ {[%emt 0:00:24]} Rxe8 {[%emt 0:00:05]} 27. Qxf4 {[%emt 0:00:04]} Qc6 {[%emt 0:06:17]} 28. Kg1 {[%emt 0:03:27]} Qc5+ {[%emt 0:10:11]} 29. Kh1 {[%emt 0:00:14]} Qc6 {[%emt 0:00:05]} 30. Kg1 {[%emt 0:00:33]} Qc5+ {[%emt 0:01:18]} 31. Kh1 {[%emt 0:00:08]} 1/2-1/2